[Event "24th Hoogeschool Zeeland 2022"]
[Site "Vlissingen"]
[Date "2022.08.10"]
[Round "6.3"]
[White "Baklan, Vladimir"]
[Black "Vrolijk, Liam"]
[Result "1/2-1/2"]
[ECO "C78"]
[WhiteElo "2589"]
[BlackElo "2464"]
[Annotator "TA"]
[PlyCount "63"]
[EventDate "2022.08.05"]
[EventType "swiss"]
[EventCountry "NED"]
[SourceTitle "playchess.com"]
[Source "ChessBase"]
[SourceQuality "1"]
[TimeControl "40/5400+30:1800+30"]

{[%evp 15,63,28,19,18,18,22,21,13,26,0,0,0,4,0,0,5,15,15,12,17,5,0,0,0,0,0,0,0,0,0,0,0,0,0,14,9,10,10,10,2,8,10,24,0,0,0,0,0,0,0]} 1. e4 {[%emt 0:00:03]} e5 {[%emt 0:03:05]} 2. Nf3 {[%emt 0:00:05]} Nc6 {[%emt 0:00:05]} 3. Bb5 {[%emt 0:00:03]} a6 {[%emt 0:00:07]} 4. Ba4 {[%emt 0:00:04]} Nf6 {[%emt 0:00:10]} 5. O-O {[%emt 0:00:12]} b5 {[%emt 0:00:22]} 6. Bb3 {[%emt 0:00:07]} Bc5 {[%emt 0:00:07]} 7. a4 {[%emt 0:00:28]} Rb8 {[%emt 0:00:06]} 8. axb5 {[%emt 0:02:40]} axb5 {[%emt 0:00:09] [#]} 9. Nxe5 $1 {[%emt 0:00:26] The main line 9.Nxe5 scores better than 9.c3. C78: Ruy Lopez: Archangelsk and Möller Defences.} Nxe5 {[%emt 0:00:07]} 10. d4 {[%emt 0:00:02]} Bxd4 {[%emt 0:00:11]} 11. Qxd4 {[%emt 0:00:03]} d6 {[%emt 0:00:09]} 12. f4 {[%emt 0:00:58]} Nc6 {[%emt 0:00:24]} 13. Qd3 {[%emt 0:00:14][%cal Oe4e5]} O-O {[%emt 0:01:10]} 14. Nc3 {[%emt 0:00:35]} Nb4 {[%emt 0:00:54]} 15. Qd2 {[%emt 0:00:23]} Qe7 {[%emt 0:02:02] Prevents e5.} 16. e5 {[%emt 0:26:56]} dxe5 {[%emt 0:03:33]} 17. fxe5 {[%emt 0:00:04]} Qxe5 {[%emt 0:01:10] [#]} 18. Qf4 $146 {[%emt 0:08:56]} ({Predecessor:} 18. Qf2 Qh5 19. Bf4 Nbd5 20. Nxd5 Nxd5 21. Bg3 Be6 22. Rae1 Qg6 23. Qc5 Rbd8 24. Qxb5 {1-0 (52) Ziaziulkina,N (2363)-Hoare,A (1930) Budva 2013}) 18... Qe7 {[%emt 0:23:28]} 19. Qh4 {[%emt 0:04:57]} Nbd5 {[%emt 0:23:55]} 20. Nxd5 {[%emt 0:18:41]} Nxd5 {[%emt 0:00:10]} 21. Qxe7 {[%emt 0:01:36]} Nxe7 {[%emt 0:00:06]} 22. Bf4 {[%emt 0:00:03]} Be6 {[%emt 0:07:27]} 23. Bxc7 {[%emt 0:00:55] [#] Hoping for Bxe6.} Rb7 {[%emt 0:00:26]} 24. Bxe6 {[%emt 0:00:36][%cal Of1f7] aiming for Rxf7!} fxe6 {[%emt 0:00:48]} 25. Rxf8+ {[%emt 0:04:44]} Kxf8 $11 {[%emt 0:00:07][%mdl 4096] Endgame KRB-KRN} 26. Be5 {[%emt 0:00:11]} Nc6 {[%emt 0:02:03]} 27. Bd6+ {[%emt 0:03:08]} Ke8 {[%emt 0:00:49]} 28. Bc5 {[%emt 0:05:27]} Rd7 {[%emt 0:10:12]} 29. b4 {[%emt 0:02:15]} Rd2 {[%emt 0:01:44] The position is equal.} 30. Ra6 {[%emt 0:03:38]} Kd7 {[%emt 0:01:50]} 31. Rb6 {[%emt 0:00:45]} Kc7 {[%emt 0:00:50]} 32. Rxb5 {[%emt 0:01:46] An interesting draw.  Weighted Error Value: White=0.03 (flawless) /Black=0.01 (flawless)} 1/2-1/2

[Event "24th Hoogeschool Zeeland 2022"]
[Site "Vlissingen"]
[Date "2022.08.10"]
[Round "6.4"]
[White "Lalith Babu M R"]
[Black "Grutter, Tim"]
[Result "1-0"]
[ECO "E90"]
[WhiteElo "2549"]
[BlackElo "2246"]
[Annotator "TA"]
[PlyCount "121"]
[EventDate "2022.08.05"]
[EventType "swiss"]
[EventCountry "NED"]
[SourceTitle "playchess.com"]
[Source "ChessBase"]
[SourceQuality "1"]
[TimeControl "40/5400+30:1800+30"]

{[%evp 13,121,40,41,46,38,32,37,38,40,32,37,0,0,0,0,0,42,31,40,27,76,54,83,30,95,39,65,61,70,50,66,0,0,0,0,5,0,0,87,14,49,54,45,30,71,70,71,70,81,0,122,125,123,69,89,75,196,178,186,185,240,250,391,383,363,287,932,877,29939,12851,5369,19,19,19,41,127,0,0,1075,1060,1080,1064,1068,1064,1037,1042,1024,1031,1016,1008,1014,1014,992,931,29965,29966,29968,29970,29973,29975,29975,29976,29981,912,29982,29983,29982,29983,29982,29983]} 1. d4 {[%emt 0:00:10]} Nf6 {[%emt 0:00:06]} 2. c4 {[%emt 0:00:04]} g6 {[%emt 0:00:03]} 3. Nc3 {[%emt 0:00:05]} Bg7 {[%emt 0:00:03]} 4. e4 {[%emt 0:00:06]} d6 {[%emt 0:00:03]} 5. Nf3 {[%emt 0:00:23]} O-O {[%emt 0:00:13]} 6. h3 {[%emt 0:00:05]} e5 {[%emt 0:00:14]} 7. d5 {[%emt 0:00:04]} Nh5 {[%emt 0:00:03]} 8. g3 {[%emt 0:00:09] E90: King's Indian: Classical: Early deviations and 6 h3.} Na6 {[%emt 0:00:08]} 9. Be3 {[%emt 0:00:17]} f5 {[%emt 0:00:07]} 10. exf5 $1 {[%emt 0:00:09] White is slightly better.} gxf5 {[%emt 0:00:05]} 11. Nh4 {[%emt 0:00:17][%cal Bf3h4,Bh4g2,Bg2f4][%mdl 32]} Nf6 {[%emt 0:00:21][%cal Of5f4,Bh5f6,Bf6d7,Bd7e5][%mdl 32]} 12. Bd3 {[%emt 0:00:05]} e4 {[%emt 0:01:49]} 13. Be2 {[%emt 0:00:05]} Nd7 {[%emt 0:01:25]} 14. Ng2 {[%emt 0:03:08]} Ne5 {[%emt 0:04:55]} (14... Bxc3+ $5 15. bxc3 Ne5 $11) 15. Nf4 {[%emt 0:00:12]} Nc5 {[%emt 0:01:13]} 16. Qc2 {[%emt 0:01:07]} a5 {[%emt 0:03:14]} (16... a6 $11 {is superior.}) 17. O-O-O $16 {[%emt 0:01:03]} b6 {[%emt 0:08:23] [#]} 18. g4 $146 {[%emt 0:05:16]} ({White should play} 18. Kb1 $16) ({Predecessor:} 18. Kb1 Qe7 19. Rdg1 Ncd3 20. Bd4 Nxf4 21. gxf4 Ng6 22. Bxg7 Kxg7 23. h4 Kh8 24. Qd2 {1-0 (30) Leutwyler,M (2200)-Everett,E (2190) Austria 2018}) 18... Qe7 {[%emt 0:27:04]} (18... a4 $11) 19. Rhg1 {[%emt 0:09:17]} (19. Kb1 $16) 19... fxg4 {[%emt 0:01:22]} 20. hxg4 {[%emt 0:00:27]} a4 {[%emt 0:04:01]} 21. a3 {[%emt 0:07:10]} Ba6 {[%emt 0:03:03]} 22. Bxc5 {[%emt 0:32:22]} (22. Nxe4 $14 Nxc4 23. Bxc4 Qxe4 24. Qxe4 Nxe4 25. Bxa6 Rxa6 26. Ne6) 22... bxc5 $11 {[%emt 0:02:40]} (22... Rxf4 23. Be3 Nd3+ 24. Kb1 $14) 23. Ne6 {[%emt 0:00:24] Pair of Knights!} (23. Qxe4 $2 Qg5 24. Rh1 Qxf4+ $19) 23... Bxc4 {[%emt 0:05:48]} 24. Qxe4 {[%emt 0:02:55]} Bxe2 {[%emt 0:00:54]} 25. Qxe2 {[%emt 0:02:25]} c4 {[%emt 0:04:49]} 26. f4 {[%emt 0:01:26]} (26. Nxf8 $16 {Black must now prevent Ne6.} Rxf8 27. Kb1) 26... Nd3+ {[%emt 0:02:10]} 27. Rxd3 {[%emt 0:00:06]} cxd3 {[%emt 0:00:03]} 28. Qxd3 {[%emt 0:00:03]} Rfb8 {[%emt 0:10:24]} 29. Rh1 $36 {[%emt 0:00:37][%mdl 2048] White is pushing.} Bxc3 {[%emt 0:01:12]} 30. bxc3 {[%emt 0:03:05]} (30. Qxc3 Rb3 31. Qe1 (31. Qxc7 $2 Qxc7+ 32. Nxc7 Rc8 $19) 31... Rab8 $11) 30... Ra7 {[%emt 0:03:06]} 31. g5 {[%emt 0:15:41]} (31. Ng5 $6 Rab7 32. Qxh7+ Qxh7 33. Rxh7 Rb1+ 34. Kd2 R8b2+ 35. Ke3 Re1+ 36. Kf3 Rf1+ 37. Ke3 Re1+ 38. Kf3 Rf1+ 39. Ke3 Re1+ $11) (31. Rh6 $1 $16 {Strongly threatening g5.} Rab7 32. g5 Rb1+ 33. Qxb1 Rxb1+ 34. Kxb1) 31... Rab7 {[%emt 0:00:48]} (31... c5 $1 $11 32. Kd2 Qb7) 32. Rh6 $1 $16 {[%emt 0:00:22][%mdl 1024] White has strong compensation. 0x0.002360e111b0dp-1022s more active pieces.} Rb1+ {[%emt 0:01:16]} 33. Kd2 $1 {[%emt 0:01:34][%cal Bc1d2,Bd2e2,Be2f2,Bf2g3,Bg3f3][%mdl 32] g6 is the strong threat.} (33. Qxb1 $6 Rxb1+ 34. Kxb1 Qe8 $11) 33... Rg1 $1 {[%emt 0:03:36] Hoping for ...Rb2+.} 34. Ke2 $1 {[%emt 0:01:25]} Rbb1 {[%emt 0:01:36]} (34... Qf7 $16) 35. Rf6 $1 $18 {[%emt 0:01:05]} Rh1 {[%emt 0:05:56]} (35... Qe8 $2 36. Rf8+ Qxf8 37. Nxf8 Rbe1+ 38. Kf2 Kxf8 39. Qxh7 Ref1+ 40. Ke2 Rxf4 41. Qxc7 Re4+ 42. Kd3 $18) 36. Kf2 $1 {[%emt 0:01:54]} (36. Rf8+ $2 Qxf8 37. Nxf8 Rb2+ 38. Kf3 Rh3+ 39. Ke4 Rxd3 $19) 36... Rb2+ {[%emt 0:02:54]} (36... Rhd1 {might work better.} 37. Qe2 Rh1) 37. Kg3 {[%emt 0:00:06] And now Rf8+ would win.} Rg1+ {[%emt 0:00:17]} (37... Rb8 $142 38. Qd4 Rc1) 38. Kf3 {[%emt 0:00:05] aiming for Rf8+.} Rb8 {[%emt 0:00:48] Against Rf8+} 39. Qd4 $1 {[%emt 0:04:26][%csl LRa4,LRg1] The board is on fire.} Rc1 {[%emt 0:01:11]} (39... Rf1+ 40. Kg4 Rc1) 40. g6 {[%emt 0:02:18] Rf7 would kill now.} Rxc3+ {[%emt 0:01:21]} 41. Qxc3 {[%emt 0:19:25] Intending Kg2 and mate.} Rb3 {[%emt 0:01:04]} 42. gxh7+ $2 {[%emt 0:09:52]} (42. Rf8+ $1 $18 Qxf8 43. gxh7+ (43. Qxb3 $2 axb3 44. gxh7+ Kh8 $19) 43... Kxh7 44. Nxf8+ Kg8 45. Qe3 $1 (45. Qxb3 $2 axb3 46. Ne6 b2 $19) 45... Kxf8 46. Ke4 Rxe3+ 47. Kxe3) 42... Kxh7 $11 {[%emt 0:05:07]} 43. Ng5+ {[%emt 0:00:06]} Kg8 {[%emt 0:00:18]} 44. Rg6+ {[%emt 0:00:05]} Kf8 {[%emt 0:00:15]} 45. Ne6+ {[%emt 0:00:29]} Ke8 $2 {[%emt 0:09:34][%mdl 8192] [#] White stays focused until the end.} (45... Qxe6 $11 46. Rxe6 Rxc3+ 47. Re3 Rc4) 46. Rg8+ $1 $18 {[%emt 0:00:14]} Kd7 {[%emt 0:18:28]} 47. Nf8+ {[%emt 0:00:13]} Qxf8 {[%emt 0:00:00]} 48. Qxb3 $1 {[%emt 0:00:10]} Qxg8 {[%emt 0:00:00]} 49. Qxa4+ {[%emt 0:00:07][%mdl 4096] Endgame KQ-KQ} Ke7 {[%emt 0:00:00]} 50. Qe4+ {[%emt 0:00:33]} Kd8 {[%emt 0:00:00]} 51. Qf5 {[%emt 0:00:33] White wants to mate with Qg5+.} Qh8 {[%emt 0:00:00]} 52. Kg4 {[%emt 0:00:04]} Qa1 {[%emt 0:00:00]} 53. Kg5 {[%emt 0:01:45] Threatening mate with Qf6+.} Qxa3 {[%emt 0:00:00]} 54. Kg6 {[%emt 0:00:14]} Qb3 {[%emt 0:00:00]} 55. Kg7 {[%emt 0:00:42]} Qc4 {[%emt 0:00:00]} 56. Qf8+ {[%emt 0:01:56]} Kd7 {[%emt 0:00:00]} 57. Qf7+ {[%emt 0:00:02]} Kc8 {[%emt 0:00:00]} 58. Qe8+ {[%emt 0:00:15]} Kb7 {[%emt 0:00:00]} 59. Qc6+ {[%emt 0:00:03] White mates.} Qxc6 {[%emt 0:00:00]} 60. dxc6+ {[%emt 0:00:05]} Kxc6 {[%emt 0:00:00]} 61. f5 {[%emt 0:00:01] Weighted Error Value: White=0.17 (very precise) /Black=0.54} 1-0

[Event "24th Hoogeschool Zeeland 2022"]
[Site "Vlissingen"]
[Date "2022.08.10"]
[Round "6.5"]
[White "Ollenberger, Roland"]
[Black "Harsha Bharathakoti"]
[Result "0-1"]
[ECO "B31"]
[WhiteElo "2264"]
[BlackElo "2547"]
[Annotator "TA"]
[PlyCount "122"]
[EventDate "2022.08.05"]
[EventType "swiss"]
[EventCountry "NED"]
[SourceTitle "playchess.com"]
[Source "ChessBase"]
[SourceQuality "1"]
[TimeControl "40/5400+30:1800+30"]

{[%evp 12,121,0,0,0,-19,-21,-48,-39,-72,-43,-45,0,0,0,-21,0,0,0,0,0,0,0,0,0,-17,-18,-14,-9,0,0,0,0,0,0,-18,-10,-27,0,-32,-18,-58,-47,-69,0,-114,-130,-81,-14,-14,-14,-98,-59,-75,-62,-102,-64,-66,-68,-66,-61,-69,-89,-83,-63,-69,-43,-245,-246,-245,-238,-234,-236,-235,-236,-327,-327,-322,-319,-312,-270,-348,-307,-461,-426,-439,-422,-544,-470,-467,-467,-694,-662,-29942,-12843,-12820,-12808,-12805,-12797,-29950,-29950,-29960,-4123,-12847,-12818,-29976,-29977,-29983,-29984,-29994,-29995,-29999]} 1. e4 {[%emt 0:00:04]} c5 {[%emt 0:00:09]} 2. Nf3 {[%emt 0:00:10]} Nc6 {[%emt 0:00:44]} 3. Bb5 {[%emt 0:00:35]} g6 {[%emt 0:00:04]} 4. O-O {[%emt 0:00:32]} Bg7 {[%emt 0:00:04]} 5. Nc3 {[%emt 0:00:22]} e5 {[%emt 0:00:32]} 6. Bxc6 {[%emt 0:01:40]} bxc6 {[%emt 0:04:26]} 7. d3 {[%emt 0:10:10]} d6 {[%emt 0:00:46] B31: Sicilian: 2...Nc6 3 Bb5 g6.} 8. Ne2 {[%emt 0:06:37]} Ne7 {[%emt 0:10:23]} 9. c3 {[%emt 0:06:53]} O-O {[%emt 0:15:34] [#] Black is slightly better.} 10. a3 $146 {[%emt 0:14:33]} ({Predecessor:} 10. d4 cxd4 11. cxd4 exd4 12. Nfxd4 Ba6 13. Be3 c5 14. Nf3 Bxb2 15. Rb1 Bg7 16. Qc2 {1-0 (36) Tamarozi,I (1981)-Hansen,S (2269) Chess.com INT 2020}) 10... f5 {[%emt 0:13:44]} 11. b4 {[%emt 0:12:56]} c4 {[%emt 0:03:25]} 12. dxc4 {[%emt 0:01:53]} fxe4 {[%emt 0:01:23]} 13. Nd2 {[%emt 0:00:30][%cal Bf3d2,Bd2b3,Bb3c5][%mdl 32]} Be6 {[%emt 0:25:19]} 14. Ng3 $1 {[%emt 0:01:03]} d5 {[%emt 0:00:02]} 15. Nb3 {[%emt 0:00:31]} Nf5 {[%emt 0:03:39][%cal Be7f5,Bf5d6,Bd6c4][%mdl 32]} 16. Nc5 {[%emt 0:03:39]} Bf7 {[%emt 0:02:07]} 17. cxd5 {[%emt 0:07:19]} cxd5 {[%emt 0:00:06]} 18. Qg4 {[%emt 0:01:16]} (18. c4 $5) 18... Nd6 {[%emt 0:02:09]} 19. Bg5 {[%emt 0:02:03]} Qc8 {[%emt 0:01:14]} 20. Qh4 {[%emt 0:02:13]} Nc4 {[%emt 0:02:51]} 21. Bh6 {[%emt 0:05:46]} Qd8 {[%emt 0:02:02]} 22. Bg5 {[%emt 0:00:05]} Qc7 {[%emt 0:00:44]} 23. Bh6 {[%emt 0:00:06]} Bxh6 {[%emt 0:01:00]} 24. Qxh6 {[%emt 0:00:05]} a5 {[%emt 0:00:01]} 25. h4 {[%emt 0:04:29][%cal Bh2h4,Bh4h5][%mdl 32]} Qe7 {[%emt 0:02:47]} 26. h5 {[%emt 0:06:03]} Rad8 {[%emt 0:02:13]} 27. f4 {[%emt 0:04:07] [#] Black must now prevent hxg6.} Qh4 {[%emt 0:00:04]} (27... Ne3 $15 28. hxg6 Bxg6) 28. Qg5 {[%emt 0:00:57]} (28. Ne2 $1 $11 {was the only way to keep the balance.}) 28... Qxg5 $17 {[%emt 0:00:10]} 29. fxg5 {[%emt 0:00:04]} gxh5 {[%emt 0:05:18]} (29... e3 $17 30. hxg6 hxg6) 30. Nf5 $11 {[%emt 0:00:38] Pair of Knights!} Kh8 {[%emt 0:00:01]} 31. Rae1 {[%emt 0:04:14]} (31. Nh6 $11 Bg6 32. Ne6 Rxf1+ 33. Rxf1) 31... axb4 {[%emt 0:01:15]} 32. axb4 {[%emt 0:00:14]} Bg8 {[%emt 0:00:42]} 33. Rf2 {[%emt 0:01:37]} Ra8 {[%emt 0:00:47]} 34. Nd7 {[%emt 0:00:56]} Rfd8 $36 {[%emt 0:01:03][%mdl 2048] Black fights for an advantage.} 35. Nf6 {[%emt 0:00:12]} Be6 {[%emt 0:00:28]} 36. Ne3 {[%emt 0:02:34]} Nxe3 {[%emt 0:00:12]} 37. Rxe3 {[%emt 0:00:05]} Ra3 {[%emt 0:00:41]} 38. Rd2 {[%emt 0:00:29]} Rc8 {[%emt 0:00:29] [#] ...d4 is the strong threat.} (38... Rda8 $5 {[%cal Rd5d4]} 39. Ree2 (39. Nxd5 Rd8 $17) 39... d4 40. Nxe4 (40. cxd4 $2 e3 $19) 40... Bc4 $17) 39. Nxd5 {[%emt 0:00:30] This costs White the game.} (39. Kf2 $1 $15) 39... Rd8 $19 {[%emt 0:00:01]} 40. Rxe4 {[%emt 0:00:23] Hoping for c4.} Rxd5 {[%emt 0:00:10]} ({Weaker is} 40... Bxd5 41. Rxe5 Rxc3 42. Rexd5 (42. Rdxd5 Rxd5 43. Rxd5 Kg7 $14) 42... Rxd5 43. Rxd5 $14) 41. Rxd5 {[%emt 0:30:42]} Bxd5 {[%emt 0:30:03]} 42. Rxe5 {[%emt 0:00:07][%mdl 4096] Endgame KRB-KR} Ba8 {[%emt 0:01:40]} 43. Re7 {[%emt 0:00:00]} Ra2 {[%emt 0:00:00]} 44. g3 {[%emt 0:00:00]} Bd5 {[%emt 0:00:00] Strongly threatening ...Rg2+.} 45. Rd7 {[%emt 0:00:00]} Be6 {[%emt 0:00:00]} 46. Re7 {[%emt 0:00:00]} Bf5 {[%emt 0:00:00]} 47. c4 {[%emt 0:00:00]} (47. Rc7 $142) 47... Rb2 {[%emt 0:00:00]} 48. Rb7 {[%emt 0:00:00]} Be4 {[%emt 0:00:00]} 49. Rb8+ {[%emt 0:00:00]} Kg7 {[%emt 0:00:00] Threatens to win with ...Rg2+.} 50. c5 {[%emt 0:00:02]} Rg2+ {[%emt 0:00:00]} 51. Kf1 {[%emt 0:00:15]} (51. Kh1 $142 Kf7 52. Rb6) 51... Rxg3 {[%emt 0:00:00] aiming for ...h4.} 52. b5 {[%emt 0:01:51]} h4 {[%emt 0:00:00]} 53. Re8 {[%emt 0:02:08]} Bd3+ {[%emt 0:00:00]} 54. Kf2 {[%emt 0:00:04]} Bxb5 {[%emt 0:00:00]} 55. Re7+ {[%emt 0:00:37]} Kg6 {[%emt 0:00:00]} 56. c6 {[%emt 0:00:22]} Rxg5 {[%emt 0:00:00]} (56... Rc3 $142 57. c7 Bd3 58. Ke3 Bf5+ 59. Kf2 Kxg5 60. c8=B Rxc8 61. Ke3 h3 62. Rg7+ Bg6 63. Ra7 h2 64. Ra5+ Bf5 65. Ra1 Re8+ 66. Kd4 Be4 67. Ra5+ Kg4 68. Ra1 h1=Q 69. Rxh1 Bxh1 70. Kc4 Rc8+ 71. Kd3 h5 72. Kd4 Kf4 73. Kd3 h4 74. Kd2 Bf3 75. Kd3 h3 76. Kd2 h2 77. Ke1 h1=Q+ 78. Kf2 Rc2#) 57. c7 {[%emt 0:00:13]} Rc5 {[%emt 0:00:00] ( -> ...Bd3)} 58. Kg2 {[%emt 0:02:10]} Bd3 {[%emt 0:00:00] Black mates.} 59. Kh3 {[%emt 0:00:23]} Bf5+ {[%emt 0:00:00]} 60. Kxh4 {[%emt 0:01:30]} Rc3 {[%emt 0:00:00][%csl Gf5][%cal Rc3h3]} 61. c8=Q {[%emt 0:00:08]} Rh3# {[%emt 0:00:00] Weighted Error Value: White=0.70/Black=0.23 (precise)} 0-1

[Event "24th Hoogeschool Zeeland 2022"]
[Site "Vlissingen"]
[Date "2022.08.10"]
[Round "6.6"]
[White "Van der Kaap, Jos"]
[Black "Beerdsen, Thomas"]
[Result "0-1"]
[ECO "A45"]
[WhiteElo "2187"]
[BlackElo "2500"]
[Annotator "TA"]
[PlyCount "70"]
[EventDate "2022.08.05"]
[EventType "swiss"]
[EventCountry "NED"]
[SourceTitle "playchess.com"]
[Source "ChessBase"]
[SourceQuality "1"]
[TimeControl "40/5400+30:1800+30"]

{[%evp 9,70,8,7,15,6,6,9,6,18,0,41,22,64,42,41,2,3,-36,-33,-33,-30,-58,12,3,7,-12,25,-29,32,0,0,0,0,0,0,0,0,0,1,0,0,0,0,0,0,0,28,34,58,31,32,0,8,0,0,0,0,0,0,-10,0,0,-1]} 1. d4 {[%emt 0:00:04]} Nf6 {[%emt 0:00:35]} 2. Bf4 {[%emt 0:00:22]} c6 {[%emt 0:00:42]} 3. e3 {[%emt 0:03:52]} Qb6 {[%emt 0:00:22]} 4. b3 {[%emt 0:04:23]} g6 {[%emt 0:02:20]} 5. Nf3 {[%emt 0:01:01]} d6 {[%emt 0:01:30]} 6. h3 {[%emt 0:02:46] A45: Trompowsky Attack.} Bg7 {[%emt 0:00:48]} 7. Be2 {[%emt 0:00:37]} c5 {[%emt 0:00:36]} 8. O-O {[%emt 0:02:58]} O-O {[%emt 0:00:52]} 9. c4 {[%emt 1:18:57]} Nc6 {[%emt 0:13:12] [#] Strongly threatening ...Nh5.} 10. Nc3 $1 {[%emt 0:00:00] [#]} Bf5 $146 {[%emt 0:05:06]} ({Predecessor:} 10... Nd7 11. Rc1 cxd4 12. Na4 Qa5 13. exd4 e5 14. Bd2 Qd8 15. d5 Ne7 16. Bb4 Nb6 17. Nxb6 axb6 {½-½ (24) Guerrero Olmos,S (2184)-Gonzalez Gonzalez,H (2039) Aviles 2002}) 11. Rc1 {[%emt 0:00:00]} Ne4 {[%emt 0:03:28]} 12. Nxe4 {[%emt 0:00:00]} (12. Nd5 $5 {[%cal Rd5b6]} Qd8 13. dxc5 $11) 12... Bxe4 {[%emt 0:02:29]} 13. Nd2 {[%emt 0:00:00] [#] And now dxc5 would win.} Bf5 {[%emt 0:00:39]} 14. e4 {[%emt 0:00:00]} Bd7 {[%emt 0:00:54]} 15. dxc5 {[%emt 0:00:00]} Qxc5 {[%emt 0:03:40]} (15... dxc5 $15 16. Nf3 Rad8) 16. Nf3 {[%emt 0:00:00]} Rfd8 {[%emt 0:07:10]} 17. Bd3 {[%emt 0:00:00]} a5 {[%emt 0:04:25][%cal Ba7a5,Ba5a4][%mdl 32]} 18. Be3 {[%emt 0:00:00]} ({White should try} 18. a4) 18... Qb4 {[%emt 0:04:08]} ({Better is} 18... Qa3 $1 $11) 19. c5 {[%emt 0:00:00]} a4 {[%emt 0:04:19]} 20. cxd6 {[%emt 0:00:00]} Qxd6 {[%emt 0:05:37][%cal Od7h3]} 21. Bb6 {[%emt 0:00:00]} Rdc8 {[%emt 0:01:38] White must now prevent ...Nb4.} 22. Bc5 {[%emt 0:00:00]} Qc7 {[%emt 0:07:52]} 23. bxa4 {[%emt 0:00:00]} Bh6 {[%emt 0:02:44]} 24. Rb1 {[%emt 0:00:00]} Be6 {[%emt 0:01:10]} 25. a3 {[%emt 0:00:00]} Ne5 {[%emt 0:01:57]} 26. Bb6 {[%emt 0:00:00]} Nxf3+ {[%emt 0:01:01]} 27. Qxf3 {[%emt 0:00:00]} Qc3 {[%emt 0:00:19]} 28. a5 {[%emt 0:00:00]} Qxa3 {[%emt 0:08:37]} 29. Ra1 {[%emt 0:00:23]} (29. e5 $5 {[%cal Rb1a1]}) 29... Qc3 {[%emt 0:03:43]} 30. Be2 {[%emt 0:00:17]} (30. e5 $5 {[%cal Rd3e4]}) 30... Qe5 {[%emt 0:00:48] Threatens to win with ...Rc3. The position is equal.} 31. Rfd1 {[%emt 0:05:23]} Bd2 {[%emt 0:04:07][%cal Bh6d2,Bd2c3,Bc3b2][%mdl 32]} 32. Qa3 {[%emt 0:03:24]} Bc3 {[%emt 0:02:21]} 33. Rac1 {[%emt 0:00:40] f4 is the strong threat.} Qf6 {[%emt 0:01:28]} (33... Qxe4 $2 34. Bf3 Qe5 35. Bxb7 $18) (33... Bxa5 $2 34. Rxc8+ Rxc8 35. Bxa5 $18) 34. Rd3 {[%emt 0:01:36]} Bb2 {[%emt 0:02:23]} 35. Rxc8+ {[%emt 0:00:05]} Rxc8 {[%emt 0:00:04][%mdl 32768] Weighted Error Value: White=0.12 (very precise) /Black=0.15 (very precise) . Loss on time!?} 0-1